fUST/lending_fUST_20241229
["ID","MTS","AMOUNT","RATE_DAILY","PERIOD"]
[347060319,1735487439962,-500.0,9.734e-05,2]
[347060320,1735487439971,-500.0,9.734e-05,2]
[347060321,1735487439980,-500.0,9.734e-05,2]
[347060322,1735487439990,-500.0,9.734e-05,2]
[347060323,1735487439999,-622.09,9.734e-05,2]
[347060324,1735487440009,-500.0,9.734e-05,2]
[347060325,1735487440019,-500.0,9.734e-05,2]
[347060326,1735487440028,-500.0,9.734e-05,2]
[347060327,1735487440039,-503.76093126,9.734e-05,2]
[347060328,1735487440048,-666.06,9.734e-05,2]
[347060329,1735487440058,-500.0,9.734e-05,2]
[347060330,1735487440067,-500.0,9.734e-05,2]
[347060331,1735487440077,-500.0,9.734e-05,2]
[347060332,1735487440086,-500.0,9.734e-05,2]
[347060333,1735487440096,-500.0,9.734e-05,2]
[347060334,1735487440106,-502.22447374,9.734e-05,2]
[347060335,1735487440115,-502.4753739,9.735e-05,2]
[347060336,1735487440124,-498.60924069,9.735e-05,2]
[347060337,1735487440134,-503.00950594,9.735e-05,2]
[347060338,1735487440143,-498.51273859,9.735e-05,2]
[347060339,1735487440153,-498.63295011,9.735e-05,2]
[347060340,1735487440163,-500.0,9.735e-05,2]
[347060341,1735487440172,-498.79066018,9.735e-05,2]
[347060342,1735487440182,-227.09888189,9.735e-05,2]
[347060343,1735487440191,-500.0,9.735e-05,2]
[347060344,1735487440200,-624.31068234,9.735e-05,2]
[347060345,1735487440209,-500.0,9.735e-05,2]
[347060346,1735487440218,-500.0,9.735e-05,2]
[347060347,1735487440228,-500.0,9.736e-05,2]
[347060348,1735487440237,-500.0,9.736e-05,2]
[347060349,1735487440247,-500.0,9.736e-05,2]
[347060350,1735487440256,-500.0,9.736e-05,2]
[347060351,1735487440266,-500.0,9.736e-05,2]
[347060352,1735487440275,-603.86,9.737e-05,2]
[347060353,1735487440285,-309.35933481,9.737e-05,2]
[347060354,1735487440294,-4279.71,9.741e-05,2]
[347060355,1735487440304,-500.0,9.741e-05,2]
[347060356,1735487440314,-5154.91,9.741e-05,2]
[347060357,1735487440323,-3000.0,9.91e-05,2]
[347060358,1735487440333,-59196.0,0.0001,2]
[347060359,1735487440343,-364.53145558,0.00010006,2]
[347060360,1735487440352,-500.0,0.00010006,2]
[347060361,1735487440362,-500.0,0.00010006,2]
[347060362,1735487440371,-500.0,0.00010006,2]
[347060363,1735487440380,-500.0,0.00010006,2]
[347060364,1735487440389,-503.83681684,0.00010006,2]
[347060365,1735487440399,-1700.3,0.00010006,2]
[347060366,1735487440409,-500.0,0.00010006,2]
[347060367,1735487440418,-533.5,0.00010007,2]
[347060368,1735487440428,-500.0,0.00010007,2]
[347060369,1735487440443,-500.0,0.00010007,2]
[347060370,1735487440452,-500.0,0.00010007,2]
[347060371,1735487440461,-500.0,0.00010007,2]
[347060372,1735487440471,-500.0,0.00010007,2]
[347060373,1735487440481,-534.62,0.00010007,2]
[347060374,1735487440490,-500.0,0.00010007,2]
[347060375,1735487440500,-890.4,0.00010007,2]
[347060376,1735487440510,-500.0,0.00010007,2]
[347060377,1735487440519,-500.0,0.00010007,2]
[347060378,1735487440528,-500.0,0.00010007,2]
[347060379,1735487440538,-500.0,0.00010007,2]
[347060380,1735487440547,-500.0,0.00010007,2]
[347060381,1735487440556,-500.0,0.00010007,2]
[347060382,1735487440565,-500.0,0.00010007,2]
[347060383,1735487440575,-500.0,0.00010007,2]
[347060384,1735487440584,-500.0,0.00010007,2]
[347060385,1735487440593,-573.43,0.00010007,2]
[347060386,1735487440603,-581.53,0.00010007,2]
[347060387,1735487440611,-1429.07,0.00010007,2]
[347060388,1735487440621,-500.0,0.00010007,2]
[347060389,1735487440630,-500.0,0.00010007,2]
[347060390,1735487440639,-612.02,0.00010007,2]
[347060391,1735487440648,-500.0,0.00010007,2]
[347060392,1735487440657,-2376.92,0.00010007,2]
[347060393,1735487440667,-500.0,0.00010007,2]
[347060394,1735487440676,-867.42,0.00010007,2]
[347060395,1735487440685,-923.34,0.00010007,2]
[347060396,1735487440695,-500.0,0.00010007,2]
[347060397,1735487440704,-745.67,0.00010007,2]
[347060398,1735487440713,-20372.6,0.00010007,2]
[347060399,1735487440723,-500.0,0.00010007,2]
[347060400,1735487440732,-500.0,0.00010007,2]
[347060401,1735487440741,-500.0,0.00010007,2]
[347060402,1735487440751,-171.01756363,0.00010007,2]
[347060403,1735487440763,-573.96,0.00010007,2]
[347060404,1735487440772,-1419.87,0.00010007,2]
[347060405,1735487440783,-712.1,0.00010007,2]
[347060406,1735487440793,-818.89,0.00010007,2]
[347060407,1735487440803,-500.0,0.00010007,2]
[347060408,1735487440812,-500.0,0.00010007,2]
[347060409,1735487440821,-500.0,0.00010008,2]
[347060410,1735487440831,-500.0,0.00010008,2]
[347060411,1735487440843,-500.0,0.00010008,2]
[347060412,1735487440853,-500.0,0.00010008,2]
[347060413,1735487440863,-500.0,0.00010008,2]
[347060414,1735487440872,-500.0,0.00010008,2]
[347060415,1735487440882,-500.0,0.00010008,2]
[347060416,1735487440891,-500.0,0.00010008,2]
[347060417,1735487440901,-622.44215617,0.00010008,2]
[347060418,1735487440910,-500.0,0.00010008,2]
[347060419,1735487440979,-500.0,0.00010008,2]
[347060420,1735487440988,-507.66078062,0.00010008,2]
[347060421,1735487440998,-500.0,0.00010008,2]
[347060422,1735487441007,-500.0,0.00010008,2]
[347060423,1735487441017,-278.66673372,0.00010008,2]
[347060424,1735487441027,-500.0,0.00010008,2]
[347060425,1735487441036,-500.0,0.00010008,2]
[347060426,1735487441046,-500.0,0.00010008,2]
[347060428,1735487441058,-494.5,0.00010008,2]
[347060430,1735487441067,-2108.07,0.00010008,2]
[347060432,1735487441076,-792.09,0.00010008,2]
[347060434,1735487441086,-500.0,0.00010008,2]
[347060436,1735487441095,-344.25921575,0.00010008,2]
[347060438,1735487441105,-500.0,0.00010008,2]
[347060439,1735487441115,-500.0,0.00010008,2]
[347060441,1735487441125,-500.0,0.00010008,2]
[347060443,1735487441135,-502.54037212,0.00010008,2]
[347060444,1735487441145,-508.18,0.00010008,2]
[347060445,1735487441154,-500.0,0.00010008,2]
[347060446,1735487441164,-500.0,0.00010008,2]
[347060447,1735487441174,-593.39,0.00010008,2]
[347060448,1735487441184,-500.0,0.00010008,2]
[347060449,1735487441193,-500.0,0.00010008,2]
[347060450,1735487441202,-620.22938055,0.00010008,2]
[347060451,1735487441212,-500.0,0.00010008,2]
[347060452,1735487441222,-500.0,0.00010008,2]
[347060453,1735487441232,-503.88529704,0.00010008,2]
[347060454,1735487441241,-1091.14,0.00010008,2]
[347060455,1735487441251,-500.0,0.00010008,2]
[347060456,1735487441263,-500.0,0.00010008,2]
[347060457,1735487441273,-500.0,0.00010008,2]
[347060458,1735487441282,-500.0,0.00010008,2]
[347060459,1735487441292,-500.0,0.00010008,2]
[347060460,1735487441301,-500.0,0.00010008,2]
[347060461,1735487441311,-622.09,0.00010008,2]
[347060462,1735487441320,-500.0,0.00010008,2]
[347060463,1735487441330,-500.0,0.00010008,2]
[347060464,1735487441339,-500.0,0.00010008,2]
[347060465,1735487441349,-666.06,0.00010008,2]
[347060466,1735487441358,-500.0,0.00010008,2]
[347060467,1735487441368,-500.0,0.00010008,2]
[347060468,1735487441377,-453.82,0.00010008,2]
[347060469,1735487441387,-500.0,0.00010008,2]
[347060470,1735487441396,-500.0,0.00010009,2]
[347060471,1735487441406,-500.0,0.00010009,2]
[347060472,1735487441416,-500.0,0.00010009,2]
[347060473,1735487441426,-500.0,0.0001001,2]
[347060474,1735487441435,-500.0,0.0001001,2]
[347060475,1735487441444,-500.0,0.0001001,2]
[347060476,1735487441454,-500.0,0.0001001,2]
[347060477,1735487441463,-500.0,0.0001001,2]
[347060478,1735487441473,-603.86,0.00010011,2]
[347060479,1735487441483,-4279.71,0.00010015,2]
[347060480,1735487441492,-500.0,0.00010015,2]
[347060481,1735487441502,-5154.91,0.00010015,2]
[347060482,1735487441514,-420.0,0.00010101,2]
[347060483,1735487441524,-159.22915729,0.00010235,2]
[347060484,1735487441533,-500.0,0.00010253,2]
[347060485,1735487441542,-500.0,0.0001028,2]
[347060486,1735487441551,-500.0,0.0001028,2]
[347060487,1735487441560,-503.75218545,0.0001028,2]
[347060488,1735487441569,-500.0,0.0001028,2]
[347060489,1735487441579,-1700.3,0.0001028,2]
[347060490,1735487441588,-643.2330209,0.0001028,2]
[347060491,1735487441597,-533.5,0.00010281,2]
[347060492,1735487441607,-500.0,0.00010281,2]
[347060493,1735487441616,-500.0,0.00010281,2]
[347060494,1735487441625,-500.0,0.00010281,2]
[347060495,1735487441634,-500.0,0.00010281,2]
[347060496,1735487441644,-500.0,0.00010281,2]
[347060497,1735487441654,-534.62,0.00010281,2]
[347060498,1735487441663,-500.0,0.00010281,2]
[347060499,1735487441673,-890.4,0.00010281,2]
[347060500,1735487441682,-500.0,0.00010281,2]
[347060501,1735487441691,-500.0,0.00010281,2]
[347060502,1735487441700,-500.0,0.00010281,2]
[347060503,1735487441710,-500.0,0.00010281,2]
[347060504,1735487441719,-500.0,0.00010281,2]
[347060505,1735487441728,-500.0,0.00010281,2]
[347060506,1735487441737,-500.0,0.00010281,2]
[347060507,1735487441746,-500.0,0.00010281,2]
[347060508,1735487441757,-500.0,0.00010281,2]
[347060509,1735487441766,-573.43,0.00010281,2]
[347060510,1735487441775,-581.53,0.00010281,2]
[347060511,1735487441785,-1429.07,0.00010281,2]
[347060512,1735487441794,-500.0,0.00010281,2]
[347060513,1735487441803,-500.0,0.00010281,2]
[347060514,1735487441813,-612.02,0.00010281,2]
[347060515,1735487441822,-500.0,0.00010281,2]
[347060516,1735487441832,-2376.92,0.00010281,2]
[347060517,1735487441845,-500.0,0.00010281,2]
[347060518,1735487441854,-867.42,0.00010281,2]
[347060519,1735487441863,-923.34,0.00010281,2]
[347060520,1735487441873,-500.0,0.00010281,2]
[347060521,1735487441883,-745.67,0.00010281,2]
[347060522,1735487441893,-20372.6,0.00010281,2]
[347060523,1735487441902,-500.0,0.00010281,2]
[347060524,1735487441912,-500.0,0.00010281,2]
[347060525,1735487441922,-500.0,0.00010281,2]
[347060526,1735487441932,-573.96,0.00010281,2]
[347060527,1735487441942,-1419.87,0.00010281,2]
[347060528,1735487441951,-712.1,0.00010281,2]
[347060530,1735487441960,-818.89,0.00010281,2]
[347060532,1735487441969,-500.0,0.00010281,2]
[347060534,1735487441978,-500.0,0.00010281,2]
[347060536,1735487441987,-1000.0,0.00010281,2]
[347060537,1735487441997,-504.78658202,0.00010282,2]
[347060540,1735487442007,-500.0,0.00010282,2]
[347060541,1735487442016,-563.19285877,0.00010282,2]
[347060544,1735487442026,-500.0,0.00010282,2]
[347060545,1735487442035,-500.0,0.00010282,2]
[347060547,1735487442044,-229.35820631,0.00010282,2]
[347060549,1735487442053,-500.0,0.00010282,2]
[347060551,1735487442062,-500.0,0.00010282,2]
[347060553,1735487442072,-500.0,0.00010282,2]
[347060556,1735487442081,-500.0,0.00010282,2]
[347060558,1735487442091,-500.0,0.00010282,2]
[347060560,1735487442100,-500.0,0.00010282,2]
[347060562,1735487442110,-500.0,0.00010282,2]
[347060563,1735487442119,-792.09,0.00010282,2]
[347060566,1735487442129,-2108.07,0.00010282,2]
[347060574,1735487442199,-502.38463958,0.00010282,2]
[347060576,1735487442208,-500.0,0.00010282,2]
[347060578,1735487442218,-502.43792739,0.00010282,2]
[347060580,1735487442227,-508.18,0.00010282,2]
[347060582,1735487442236,-502.51065196,0.00010282,2]
[347060584,1735487442245,-593.39,0.00010282,2]
[347060586,1735487442254,-500.0,0.00010282,2]
[347060587,1735487442265,-500.0,0.00010282,2]
[347060588,1735487442274,-500.0,0.00010282,2]
[347060589,1735487442283,-500.0,0.00010282,2]
[347060590,1735487442293,-1091.14,0.00010282,2]
[347060591,1735487442302,-500.0,0.00010282,2]
[347060593,1735487442312,-500.0,0.00010282,2]
[347060594,1735487442321,-293.0198137,0.00010282,2]
[347060595,1735487442331,-500.0,0.00010282,2]
[347060596,1735487442340,-500.0,0.00010282,2]
[347060597,1735487442349,-622.09,0.00010282,2]
[347060598,1735487442358,-500.0,0.00010282,2]
[347060599,1735487442367,-500.0,0.00010282,2]
[347060600,1735487442376,-500.0,0.00010282,2]
[347060601,1735487442386,-666.06,0.00010282,2]
[347060602,1735487442395,-500.0,0.00010282,2]
[347060603,1735487442405,-500.0,0.00010282,2]
[347060604,1735487442414,-500.0,0.00010282,2]
[347060605,1735487442424,-500.0,0.00010283,2]
[347060606,1735487442433,-500.0,0.00010283,2]
[347060607,1735487442443,-500.0,0.00010283,2]
[347060608,1735487442452,-500.0,0.00010284,2]
[347060609,1735487442462,-286.29169914,0.00010284,2]
[347060610,1735487442471,-500.0,0.00010284,2]
[347060611,1735487442480,-500.0,0.00010284,2]
[347060612,1735487442490,-500.0,0.00010284,2]
[347060613,1735487442499,-603.86,0.00010285,2]
[347060614,1735487442509,-4279.71,0.00010289,2]
[347060615,1735487442518,-500.0,0.00010289,2]
[347060617,1735487442528,-5154.91,0.00010289,2]
[347060620,1735487442537,-10578.27759194,0.00010512,2]
[347060623,1735487442547,-500.0,0.00010554,2]
[347060625,1735487442556,-550.50921357,0.00010554,2]
[347060628,1735487442566,-500.0,0.00010554,2]
[347060629,1735487442576,-1700.3,0.00010554,2]
[347060630,1735487442585,-533.5,0.00010555,2]
[347060631,1735487442595,-640.26773415,0.00010555,2]
[347060632,1735487442604,-500.0,0.00010555,2]
[347060633,1735487442614,-500.0,0.00010555,2]
[347060634,1735487442623,-500.0,0.00010555,2]
[347060635,1735487442633,-500.0,0.00010555,2]
[347060636,1735487442643,-534.62,0.00010555,2]
[347060637,1735487442652,-500.0,0.00010555,2]
[347060638,1735487442661,-890.4,0.00010555,2]
[347060639,1735487442671,-500.0,0.00010555,2]
[347060640,1735487442680,-500.0,0.00010555,2]
[347060641,1735487442689,-500.0,0.00010555,2]
[347060642,1735487442699,-500.0,0.00010555,2]
[347060643,1735487442709,-500.0,0.00010555,2]
[347060644,1735487442719,-500.0,0.00010555,2]
[347060645,1735487442732,-500.0,0.00010555,2]
[347060646,1735487442749,-500.0,0.00010555,2]
[347060647,1735487442763,-500.0,0.00010555,2]
[347060648,1735487442778,-573.43,0.00010555,2]
[347060649,1735487442795,-581.53,0.00010555,2]
[347060650,1735487442813,-1429.07,0.00010555,2]
[347060651,1735487442829,-500.0,0.00010555,2]
[347060652,1735487442844,-500.0,0.00010555,2]
[347060653,1735487442859,-612.02,0.00010555,2]
[347060654,1735487442874,-500.0,0.00010555,2]
[347060655,1735487442887,-2376.92,0.00010555,2]
[347060656,1735487442900,-500.0,0.00010555,2]
[347060657,1735487442915,-867.42,0.00010555,2]
[347060658,1735487442931,-923.34,0.00010555,2]
[347060659,1735487442947,-500.0,0.00010555,2]
[347060660,1735487442961,-745.67,0.00010555,2]
[347060661,1735487442973,-20372.6,0.00010555,2]
[347060662,1735487442987,-500.0,0.00010555,2]
[347060663,1735487443003,-500.0,0.00010555,2]
[347060664,1735487443016,-500.0,0.00010555,2]
[347060665,1735487443029,-573.96,0.00010555,2]
[347060666,1735487443043,-1419.87,0.00010555,2]
[347060667,1735487443055,-712.1,0.00010555,2]
[347060668,1735487443068,-818.89,0.00010555,2]
[347060669,1735487443081,-500.0,0.00010555,2]
[347060670,1735487443094,-500.0,0.00010555,2]
[347060671,1735487443106,-500.0,0.00010556,2]
[347060672,1735487443119,-500.0,0.00010556,2]
[347060673,1735487443131,-500.0,0.00010556,2]
[347060674,1735487443144,-500.0,0.00010556,2]
[347060675,1735487443157,-539.80316214,0.00010556,2]
[347060677,1735487443169,-500.0,0.00010556,2]
[347060679,1735487443182,-500.0,0.00010556,2]
[347060680,1735487443195,-500.0,0.00010556,2]
[347060681,1735487443207,-500.0,0.00010556,2]
[347060682,1735487443220,-361.5006161,0.00010556,2]
[347060683,1735487443232,-792.09,0.00010556,2]
[347060684,1735487443245,-2108.07,0.00010556,2]
[347060685,1735487443258,-500.0,0.00010556,2]
[347060686,1735487443271,-508.18,0.00010556,2]
[347060687,1735487443284,-593.39,0.00010556,2]
[347060688,1735487443297,-500.0,0.00010556,2]
[347060689,1735487443310,-500.0,0.00010556,2]
[347060690,1735487443322,-500.0,0.00010556,2]
[347060691,1735487443335,-1091.14,0.00010556,2]
[347060692,1735487443348,-500.0,0.00010556,2]
[347060693,1735487443361,-500.0,0.00010556,2]
[347060694,1735487443374,-500.0,0.00010556,2]
[347060695,1735487443387,-500.0,0.00010556,2]
[347060696,1735487443399,-622.09,0.00010556,2]
[347060697,1735487443413,-500.0,0.00010556,2]
[347060698,1735487443426,-287.68202875,0.00010556,2]
[347060699,1735487443438,-500.0,0.00010556,2]
[347060700,1735487443451,-666.06,0.00010556,2]
[347060701,1735487443464,-500.0,0.00010556,2]
[347060702,1735487443564,-500.0,0.00010556,2]
[347060703,1735487443579,-500.0,0.00010557,2]
[347060704,1735487443589,-500.0,0.00010557,2]
[347060705,1735487443599,-500.0,0.00010557,2]
[347060706,1735487443608,-500.0,0.00010558,2]
[347060707,1735487443618,-500.0,0.00010558,2]
[347060708,1735487443627,-257.74982555,0.00010558,2]
[347060709,1735487443750,-242.25017445,0.00010558,2]
[347060710,1735487443761,-500.0,0.00010558,2]
[347060711,1735487443771,-603.86,0.00010559,2]
[347060712,1735487443780,-4279.71,0.00010563,2]
[347060713,1735487443790,-500.0,0.00010563,2]
[347060714,1735487443800,-5154.91,0.00010563,2]
[347060715,1735487443809,-1017.74143387,0.00010801,2]
[347060716,1735487443819,-2093.36839168,0.00010826,2]
[347060717,1735487443831,-600.0,0.00010826,2]
[347060718,1735487443846,-7884.90920026,0.00010826,2]
[347060719,1735487443858,-500.0,0.00010828,2]
[347060720,1735487443867,-500.0,0.00010828,2]
[347060721,1735487443877,-1700.3,0.00010828,2]
[347060722,1735487443887,-533.5,0.00010829,2]
[347060723,1735487443898,-500.0,0.00010829,2]
[347060724,1735487443908,-500.0,0.00010829,2]
[347060725,1735487443918,-500.0,0.00010829,2]
[347060726,1735487443929,-500.0,0.00010829,2]
[347060727,1735487443939,-534.62,0.00010829,2]
[347060728,1735487443949,-500.0,0.00010829,2]
[347060729,1735487443958,-890.4,0.00010829,2]
[347060730,1735487443968,-500.0,0.00010829,2]
[347060731,1735487443977,-500.0,0.00010829,2]
[347060732,1735487443987,-500.0,0.00010829,2]
[347060733,1735487443997,-500.0,0.00010829,2]
[347060734,1735487444008,-500.0,0.00010829,2]
[347060735,1735487444017,-500.0,0.00010829,2]
[347060736,1735487444027,-500.0,0.00010829,2]
[347060737,1735487444036,-500.0,0.00010829,2]
[347060738,1735487444045,-500.0,0.00010829,2]
[347060739,1735487444055,-573.43,0.00010829,2]
[347060740,1735487444064,-581.53,0.00010829,2]
[347060741,1735487444073,-1429.07,0.00010829,2]
[347060742,1735487444083,-500.0,0.00010829,2]
[347060743,1735487444092,-512.92406071,0.00010829,2]
[347060744,1735487444102,-612.02,0.00010829,2]
[347060745,1735487444111,-500.0,0.00010829,2]
[347060746,1735487444121,-2376.92,0.00010829,2]
[347060747,1735487444130,-500.0,0.00010829,2]
[347060748,1735487444139,-867.42,0.00010829,2]
[347060749,1735487444149,-923.34,0.00010829,2]
[347060750,1735487444159,-500.0,0.00010829,2]
[347060751,1735487444169,-745.67,0.00010829,2]
[347060752,1735487444179,-7784.93889125,0.00010829,2]
[347060758,1735487446891,-12587.66110875,0.00010829,2]
[347060759,1735487446901,-500.0,0.00010829,2]
[347060760,1735487446911,-500.0,0.00010829,2]
[347060761,1735487446920,-500.0,0.00010829,2]
[347060762,1735487446930,-573.96,0.00010829,2]
[347060763,1735487446939,-1419.87,0.00010829,2]
[347060764,1735487446949,-712.1,0.00010829,2]
[347060765,1735487446958,-818.89,0.00010829,2]
[347060768,1735487446968,-500.0,0.00010829,2]
[347060770,1735487446977,-500.0,0.00010829,2]
[347060772,1735487446987,-500.0,0.0001083,2]
[347060774,1735487446996,-336.45968115,0.0001083,2]
[347060776,1735487447006,-500.0,0.0001083,2]
[347060778,1735487447022,-500.0,0.0001083,2]
[347060779,1735487447032,-500.0,0.0001083,2]
[347060780,1735487447041,-345.12073171,0.0001083,2]
[347060781,1735487447051,-500.0,0.0001083,2]
[347060782,1735487447062,-792.09,0.0001083,2]
[347060783,1735487447071,-2108.07,0.0001083,2]
[347060784,1735487447081,-500.0,0.0001083,2]
[347060785,1735487447091,-508.18,0.0001083,2]
[347060786,1735487447100,-593.39,0.0001083,2]
[347060787,1735487447110,-500.0,0.0001083,2]
[347060788,1735487447120,-500.0,0.0001083,2]
[347060789,1735487447130,-233.69801327,0.0001083,2]
[347060790,1735487447140,-500.0,0.0001083,2]
[347060791,1735487447149,-1091.14,0.0001083,2]
[347060792,1735487447159,-308.54753839,0.0001083,2]
[347060793,1735487447169,-500.0,0.0001083,2]
[347060794,1735487447178,-500.0,0.0001083,2]
[347060795,1735487447188,-622.09,0.0001083,2]
[347060796,1735487447198,-560.47859163,0.0001083,2]
[347060797,1735487447207,-666.06,0.0001083,2]
[347060798,1735487447216,-500.0,0.0001083,2]
[347060799,1735487447226,-500.0,0.0001083,2]
[347060800,1735487447236,-500.0,0.00010831,2]
[347060801,1735487447245,-500.0,0.00010831,2]
[347060802,1735487447254,-500.0,0.00010831,2]
[347060803,1735487447269,-500.0,0.00010832,2]
[347060804,1735487447278,-500.0,0.00010832,2]
[347060805,1735487447287,-500.0,0.00010832,2]
[347060806,1735487447296,-500.0,0.00010832,2]
[347060807,1735487447306,-603.86,0.00010833,2]
[347060808,1735487447317,-4279.71,0.00010837,2]
[347060809,1735487447327,-500.0,0.00010837,2]
[347060810,1735487447336,-5154.91,0.00010837,2]
[347060811,1735487447345,-151.0,0.00010959,2]
[347060812,1735487447355,-151.0,0.00010959,2]
[347060813,1735487447364,-151.0,0.00010959,2]
[347060814,1735487447374,-151.0,0.00010959,2]
[347060815,1735487447384,-151.0,0.00010959,2]
[347060816,1735487447393,-159.935788,0.00010959,2]
[347060817,1735487447403,-153.810594,0.00010959,2]
[347060818,1735487447412,-534.865297,0.00010959,2]
[347060819,1735487447421,-534.865297,0.00010959,2]
[347060820,1735487447431,-151.0,0.00010959,2]
[347060821,1735487447441,-151.0,0.00010959,2]
[347060822,1735487447451,-151.0,0.00010959,2]
[347060823,1735487447460,-673.655053,0.00010959,2]
[347060824,1735487447470,-151.0,0.00010959,2]
[347060825,1735487447480,-673.655053,0.00010959,2]
[347060826,1735487447489,-151.0,0.00010959,2]
[347060827,1735487447499,-151.0,0.00010959,2]
[347060828,1735487447509,-189.420745,0.00010959,2]
[347060829,1735487447522,-189.420745,0.00010959,2]
[347060830,1735487447531,-347.178597,0.00010959,2]
[347060831,1735487447541,-347.178597,0.00010959,2]
[347060832,1735487447551,-151.0,0.00010959,2]
[347060833,1735487447561,-151.0,0.00010959,2]
[347060834,1735487447570,-151.0,0.00010959,2]
[347060835,1735487447580,-1033.930098,0.00010959,2]
[347060836,1735487447590,-1033.930098,0.00010959,2]
[347060837,1735487447599,-1416.753195,0.00010959,2]
[347060838,1735487447609,-672.150759,0.00010959,2]
[347060839,1735487447619,-1416.753195,0.00010959,2]
[347060840,1735487447629,-672.150759,0.00010959,2]
[347060841,1735487447639,-151.0,0.00010959,2]
[347060842,1735487447648,-151.0,0.00010959,2]
[347060843,1735487447658,-800.220489,0.00010959,2]
[347060844,1735487447668,-800.220489,0.00010959,2]
[347060845,1735487447677,-430.723374,0.00010959,2]
[347060846,1735487447687,-430.723374,0.00010959,2]
[347060847,1735487447697,-151.0,0.00010959,2]
[347060848,1735487447706,-151.0,0.00010959,2]
[347060849,1735487447715,-151.0,0.00010959,2]
[347060850,1735487447725,-1050.955615,0.00010959,2]
[347060851,1735487447734,-229.371443,0.00010959,2]
[347060852,1735487447744,-1050.955615,0.00010959,2]
[347060853,1735487447753,-229.371443,0.00010959,2]
[347060854,1735487447766,-151.0,0.00010959,2]
[347060855,1735487447776,-151.0,0.00010959,2]
[347060856,1735487447786,-160.784858,0.00010959,2]
[347060857,1735487447795,-688.346205,0.00010959,2]
[347060858,1735487447804,-160.784858,0.00010959,2]
[347060859,1735487447814,-688.346205,0.00010959,2]
[347060860,1735487447826,-151.0,0.00010959,2]
[347060861,1735487447835,-151.0,0.00010959,2]
[347060862,1735487447919,-688.346205,0.00010959,2]
[347060863,1735487447929,-688.346205,0.00010959,2]
[347060864,1735487447947,-229.371443,0.00010975,2]
[347060865,1735487447957,-229.371443,0.00010975,2]
[347060866,1735487447966,-626.06979097,0.00011,2]
[347060867,1735487447975,-504.005,0.00011041,2]
[347060868,1735487447985,-151.0,0.00011075,2]
[347060869,1735487447995,-800.220489,0.00011087,2]
[347060870,1735487448006,-800.220489,0.00011087,2]
[347060871,1735487448022,-151.0,0.00011087,2]
[347060872,1735487448032,-151.0,0.00011087,2]
[347060873,1735487448041,-1050.955615,0.00011087,2]
[347060874,1735487448051,-1050.955615,0.00011087,2]
[347060875,1735487448061,-151.0,0.000111,2]
[347060876,1735487448071,-151.0,0.000111,2]
[347060877,1735487448081,-500.0,0.00011102,2]
[347060878,1735487448092,-500.0,0.00011102,2]
[347060879,1735487448103,-1700.3,0.00011102,2]
[347060880,1735487448112,-533.5,0.00011103,2]
[347060881,1735487448123,-500.0,0.00011103,2]